[Event "MČR družstev mladších žáků 2024"]
[Site "Harrachov, Czech Republic"]
[Date "2024.06.14"]
[Round "1.1"]
[White "Lickova Anna"]
[Black "Vancakova Veronika"]
[Result "0-1"]
[TimeControl "25+10"]
[WhiteFideId "23744359"]
[BlackFideId "23731907"]
[WhiteElo "1377"]
[BlackElo "1437"]

1. e4 {[%clk 00:25:18]} {[%emt 00:00:02]} d6 {[%clk 00:25:20]} {[%emt
00:00:01]} 2. d4 {[%clk 00:25:25]} {[%emt 00:00:02]} Nf6 {[%clk 00:25:28]}
{[%emt 00:00:01]} 3. Nc3 {[%clk 00:25:29]} {[%emt 00:00:07]} g6 {[%clk
00:25:36]} {[%emt 00:00:02]} 4. Bc4 {[%clk 00:25:06]} {[%emt 00:00:33]} Bg7
{[%clk 00:25:40]} {[%emt 00:00:06]} 5. Nf3 {[%clk 00:25:00]} {[%emt 00:00:15]}
O-O {[%clk 00:25:43]} {[%emt 00:00:07]} 6. O-O {[%clk 00:24:54]} {[%emt
00:00:16]} Nxe4 {[%clk 00:25:45]} {[%emt 00:00:08]} 7. Nxe4 {[%clk 00:24:01]}
{[%emt 00:01:03]} d5 {[%clk 00:25:53]} {[%emt 00:00:02]} 8. Bd3 {[%clk
00:23:49]} {[%emt 00:00:22]} dxe4 {[%clk 00:25:48]} {[%emt 00:00:15]} 9. Bxe4
{[%clk 00:23:47]} {[%emt 00:00:12]} Nd7 {[%clk 00:24:51]} {[%emt 00:01:07]} 10.
Re1 {[%clk 00:23:13]} {[%emt 00:00:44]} c5 {[%clk 00:24:23]} {[%emt 00:00:38]}
11. c3 {[%clk 00:21:02]} {[%emt 00:02:21]} Qc7 {[%clk 00:22:47]} {[%emt
00:01:46]} 12. Bg5 {[%clk 00:19:50]} {[%emt 00:01:22]} Nf6 {[%clk 00:22:11]}
{[%emt 00:00:47]} 13. Bh4 {[%clk 00:17:00]} {[%emt 00:03:00]} Nxe4 {[%clk
00:19:23]} {[%emt 00:02:58]} 14. Rxe4 {[%clk 00:16:14]} {[%emt 00:00:55]} e6
{[%clk 00:18:53]} {[%emt 00:00:40]} 15. Bg3 {[%clk 00:15:30]} {[%emt 00:00:55]}
Qb6 {[%clk 00:11:00]} {[%emt 00:08:03]} 16. Qc2 {[%clk 00:06:43]} {[%emt
00:08:56]} e5 {[%clk 00:04:29]} {[%emt 00:06:41]} 17. dxc5 {[%clk 00:05:19]}
{[%emt 00:01:34]} Qxc5 {[%clk 00:04:38]} {[%emt 00:00:01]} 18. Ree1 {[%clk
00:05:03]} {[%emt 00:00:26]} Bf5 {[%clk 00:04:45]} {[%emt 00:00:04]} 19. Qb3
{[%clk 00:04:16]} {[%emt 00:00:57]} Rfe8 {[%clk 00:04:16]} {[%emt 00:00:39]} 20.
Rad1 {[%clk 00:03:51]} {[%emt 00:00:35]} Be6 {[%clk 00:03:50]} {[%emt
00:00:35]} 21. Qc2 {[%clk 00:03:41]} {[%emt 00:00:21]} Bc4 {[%clk 00:02:55]}
{[%emt 00:01:05]} 22. b3 {[%clk 00:02:57]} {[%emt 00:00:54]} Bb5 {[%clk
00:03:02]} {[%emt 00:00:03]} 23. c4 {[%clk 00:02:56]} {[%emt 00:00:10]} Bc6
{[%clk 00:03:09]} {[%emt 00:00:03]} 24. Nd2 {[%clk 00:02:00]} {[%emt 00:01:06]}
f5 {[%clk 00:02:55]} {[%emt 00:00:24]} 25. h3 {[%clk 00:01:36]} {[%emt
00:00:33]} Rad8 {[%clk 00:01:51]} {[%emt 00:01:15]} 26. Nf1 {[%clk 00:00:46]}
{[%emt 00:01:00]} Be4 {[%clk 00:01:38]} {[%emt 00:00:23]} 27. Qc1 {[%clk
00:00:35]} {[%emt 00:00:21]} Bd3 {[%clk 00:01:10]} {[%emt 00:00:37]} 28. a3
{[%clk 00:00:18]} {[%emt 00:00:28]} f4 {[%clk 00:00:52]} {[%emt 00:00:27]} 29.
Bh2 {[%clk 00:00:24]} {[%emt 00:00:04]} g5 {[%clk 00:01:00]} {[%emt 00:00:02]}
30. b4 {[%clk 00:00:16]} {[%emt 00:00:18]} Qxc4 {[%clk 00:01:00]} {[%emt
00:00:10]} 31. Qxc4+ {[%clk 00:00:24]} {[%emt 00:00:01]} Bxc4 {[%clk 00:01:09]}
{[%emt 00:00:01]} 32. g3 {[%emt 00:00:14]} Kf7 {[%clk 00:00:46]} {[%emt
00:00:31]} 33. gxf4 {[%clk 00:00:28]} {[%emt 00:00:04]} gxf4 {[%clk 00:00:44]}
{[%emt 00:00:11]} 34. Nd2 {[%clk 00:00:28]} {[%emt 00:00:11]} Be6 {[%clk
00:00:44]} {[%emt 00:00:10]} 35. Ne4 {[%clk 00:00:30]} {[%emt 00:00:08]} Rg8
{[%clk 00:00:21]} {[%emt 00:00:33]} 36. Ng5+ {[%clk 00:00:25]} {[%emt
00:00:15]} Ke7 {[%clk 00:00:27]} {[%emt 00:00:03]} 37. Nxe6 {[%clk 00:00:32]}
{[%emt 00:00:03]} Kxe6 {[%emt 00:00:02]} 38. Kh1 {[%clk 00:00:36]} {[%emt
00:00:05]} Rxd1 {[%clk 00:00:40]} {[%emt 00:00:07]} 39. Rxd1 {[%clk 00:00:45]}
Rc8 {[%clk 00:00:44]} {[%emt 00:00:06]} 40. Rd3 {[%clk 00:00:17]} {[%emt
00:00:38]} Bf6 {[%clk 00:00:52]} {[%emt 00:00:02]} 41. Bg1 {[%clk 00:00:20]}
{[%emt 00:00:07]} e4 {[%clk 00:00:54]} {[%emt 00:00:07]} 42. Rd2 {[%clk
00:00:16]} {[%emt 00:00:14]} Rc1 {[%clk 00:00:58]} {[%emt 00:00:05]} 43. Re2
{[%clk 00:00:20]} {[%emt 00:00:07]} Kf5 {[%clk 00:01:06]} {[%emt 00:00:02]} 44.
Rd2 {[%clk 00:00:16]} {[%emt 00:00:14]} Ke6 {[%clk 00:01:15]} 45. Re2 {[%clk
00:00:25]} {[%emt 00:00:02]} Kd5 {[%clk 00:01:24]} 46. Rd2+ {[%clk 00:00:32]}
{[%emt 00:00:02]} Bd4 {[%clk 00:01:32]} {[%emt 00:00:02]} 47. Kh2 {[%clk
00:00:25]} {[%emt 00:00:18]} Kc4 {[%clk 00:01:34]} {[%emt 00:00:08]} 48. b5
{[%clk 00:00:14]} {[%emt 00:00:21]} Kc3 {[%clk 00:01:38]} {[%emt 00:00:06]} 49.
Re2 {[%clk 00:00:22]} {[%emt 00:00:02]} Kd3 {[%clk 00:01:47]} {[%emt 00:00:01]}
50. Ra2 {[%clk 00:00:27]} {[%emt 00:00:05]} f3 {[%clk 00:01:02]} {[%emt
00:00:55]} 51. a4 {[%clk 00:00:23]} {[%emt 00:00:14]} Be5+ {[%clk 00:01:10]}
{[%emt 00:00:01]} 52. Kh1 {[%clk 00:00:32]} {[%emt 00:00:01]} Ra1 {[%clk
00:01:17]} {[%emt 00:00:04]} 53. Rxa1 {[%clk 00:00:33]} {[%emt 00:00:10]} Bxa1
{[%clk 00:01:23]} {[%emt 00:00:03]} 54. Bh2 {[%clk 00:00:40]} {[%emt 00:00:03]}
Kc4 {[%clk 00:01:21]} {[%emt 00:00:12]} 55. Bb8 {[%clk 00:00:41]} {[%emt
00:00:08]} Bd4 {[%clk 00:01:30]} {[%emt 00:00:02]} 56. Kg1 {[%clk 00:00:44]}
{[%emt 00:00:07]} Kb4 {[%clk 00:01:36]} {[%emt 00:00:03]} 57. Kf1 {[%clk
00:00:23]} {[%emt 00:00:31]} Kxa4 {[%clk 00:01:45]} {[%emt 00:00:02]} 58. Ke1
{[%clk 00:00:15]} {[%emt 00:00:18]} Kxb5 {[%clk 00:01:52]} {[%emt 00:00:02]} 59.
Bg3 {[%clk 00:00:13]} {[%emt 00:00:13]} Kc4 {[%clk 00:01:35]} {[%emt 00:00:27]}
60. Kd2 {[%clk 00:00:19]} {[%emt 00:00:04]} Kb3 {[%clk 00:01:44]} 61. h4 {[%clk
00:00:26]} {[%emt 00:00:03]} h5 {[%clk 00:01:51]} {[%emt 00:00:03]} 62. Kc1
{[%clk 00:00:27]} {[%emt 00:00:09]} a5 {[%clk 00:01:55]} {[%emt 00:00:06]} 63.
Bd6 {[%clk 00:00:17]} {[%emt 00:00:20]} Bxf2 {[%clk 00:01:31]} {[%emt
00:00:34]} 64. Kd2 {[%clk 00:00:18]} {[%emt 00:00:10]} Bd4 {[%clk 00:01:37]}
{[%emt 00:00:04]} 65. Be7 {[%clk 00:00:15]} {[%emt 00:00:13]} a4 {[%clk
00:01:40]} {[%emt 00:00:07]} 66. Bd6 {[%clk 00:00:20]} {[%emt 00:00:04]} a3
{[%clk 00:01:49]} {[%emt 00:00:01]} 67. Bxa3 {[%clk 00:00:23]} {[%emt
00:00:07]} Kxa3 {[%clk 00:01:57]} {[%emt 00:00:02]} 68. Ke1 {[%clk 00:00:27]}
{[%emt 00:00:06]} b5 {[%clk 00:02:01]} {[%emt 00:00:06]} 69. Kd2 {[%clk
00:00:28]} {[%emt 00:00:09]} b4 {[%clk 00:02:03]} {[%emt 00:00:07]} 70. Kd1
{[%clk 00:00:30]} {[%emt 00:00:08]} f2 {[%clk 00:02:01]} {[%emt 00:00:13]} 71.
Kd2 {[%clk 00:00:23]} {[%emt 00:00:17]} f1=Q {[%clk 00:02:03]} {[%emt
00:00:08]} 72. Kc2 {[%clk 00:00:28]} {[%emt 00:00:05]} Qe2+ {[%clk 00:02:08]}
{[%emt 00:00:05]} 73. Kc1 {[%clk 00:00:28]} {[%emt 00:00:10]} Qb2+ {[%clk
00:02:16]} {[%emt 00:00:02]} 74. Kd1 {[%clk 00:00:35]} {[%emt 00:00:02]} Be3
{[%clk 00:02:25]} {[%emt 00:00:02]} 75. Ke1 {[%clk 00:00:41]} {[%emt 00:00:04]}
Qf2+ {[%clk 00:02:32]} {[%emt 00:00:02]} 76. Kd1 {[%clk 00:00:50]} {[%emt
00:00:01]} Qd2# {[%emt 00:00:07]} 0-1



[ePGN "0.1;DGT LiveChess/2.2.6"]

[Event "MČR družstev mladších žáků 2024"]
[Site "Harrachov, Czech Republic"]
[Date "2024.06.14"]
[Round "1.10"]
[White "Meisl Ondrej"]
[Black "Gernert Tomas"]
[Result "0-1"]
[TimeControl "25+10"]
[BlackFideId "23750219"]
[WhiteElo "1109"]
[BlackElo "1409"]

1. e4 {[%clk 00:25:17]} {[%emt 00:00:02]} c5 {[%clk 00:25:19]} {[%emt
00:00:01]} 2. Nf3 {[%clk 00:25:24]} {[%emt 00:00:03]} Nc6 {[%clk 00:25:28]} 3.
Bb5 {[%clk 00:25:29]} {[%emt 00:00:05]} e6 {[%clk 00:25:35]} {[%emt 00:00:03]}
4. Nc3 {[%clk 00:25:25]} {[%emt 00:00:14]} Nge7 {[%clk 00:25:40]} {[%emt
00:00:06]} 5. O-O {[%clk 00:25:23]} {[%emt 00:00:12]} a6 {[%clk 00:24:55]}
{[%emt 00:00:54]} 6. Bxc6 {[%clk 00:24:58]} {[%emt 00:00:34]} Nxc6 {[%clk
00:25:02]} {[%emt 00:00:03]} 7. d3 {[%clk 00:24:46]} {[%emt 00:00:22]} Be7
{[%clk 00:25:01]} {[%emt 00:00:12]} 8. Re1 {[%clk 00:24:45]} {[%emt 00:00:10]}
O-O {[%clk 00:24:38]} {[%emt 00:00:33]} 9. Be3 {[%clk 00:24:29]} {[%emt
00:00:27]} d5 {[%clk 00:24:07]} {[%emt 00:00:40]} 10. h3 {[%clk 00:24:03]}
{[%emt 00:00:35]} d4 {[%clk 00:24:03]} {[%emt 00:00:15]} 11. Bxd4 {[%clk
00:23:49]} {[%emt 00:00:24]} cxd4 {[%clk 00:23:38]} {[%emt 00:00:35]} 12. Ne2
{[%clk 00:23:44]} {[%emt 00:00:14]} e5 {[%clk 00:23:26]} {[%emt 00:00:23]} 13.
c3 {[%clk 00:23:25]} {[%emt 00:00:29]} dxc3 {[%clk 00:21:45]} {[%emt 00:01:51]}
14. Nxc3 {[%clk 00:23:20]} {[%emt 00:00:14]} Bb4 {[%clk 00:19:57]} {[%emt
00:01:58]} 15. Qc2 {[%clk 00:22:21]} {[%emt 00:01:09]} Nd4 {[%clk 00:19:24]}
{[%emt 00:00:43]} 16. Qa4 {[%clk 00:21:36]} {[%emt 00:00:54]} Nxf3+ {[%clk
00:18:41]} {[%emt 00:00:54]} 17. gxf3 {[%clk 00:21:20]} {[%emt 00:00:25]} Bxc3
{[%clk 00:18:46]} {[%emt 00:00:06]} 18. bxc3 {[%clk 00:20:55]} {[%emt
00:00:16]} Qxd3 19. Re3 {[%clk 00:20:36]} {[%emt 00:01:38]} Qd7 {[%clk
00:18:03]} 20. Qxd7 {[%clk 00:20:38]} Bxd7 21. Rd1 {[%emt 00:00:11]} Bxh3
{[%clk 00:18:08]} 22. Kh2 {[%clk 00:20:37]} {[%emt 00:00:10]} Be6 {[%clk
00:18:11]} {[%emt 00:00:07]} 23. Rg1 {[%clk 00:20:22]} {[%emt 00:00:24]} Rfd8
{[%clk 00:17:35]} {[%emt 00:00:47]} 24. Ree1 {[%clk 00:20:11]} {[%emt
00:00:21]} Bxa2 {[%clk 00:17:25]} {[%emt 00:00:20]} 25. Rg2 {[%clk 00:20:09]}
{[%emt 00:00:12]} Rd6 {[%clk 00:17:27]} {[%emt 00:00:08]} 26. Rh1 {[%clk
00:19:59]} {[%emt 00:00:21]} Rad8 {[%clk 00:17:15]} {[%emt 00:00:22]} 27. Rg3
{[%clk 00:19:37]} {[%emt 00:00:31]} Rh6+ {[%clk 00:17:16]} {[%emt 00:00:10]} 28.
Rh3 {[%clk 00:19:30]} {[%emt 00:00:17]} Rxh3+ {[%clk 00:17:06]} {[%emt
00:00:21]} 29. Kxh3 {[%clk 00:19:38]} {[%emt 00:00:02]} Rd3 {[%clk 00:17:12]}
{[%emt 00:00:04]} 30. Kg2 {[%clk 00:19:43]} {[%emt 00:00:05]} Bb3 {[%clk
00:16:59]} {[%emt 00:00:23]} 31. Rh5 {[%clk 00:19:15]} {[%emt 00:00:38]} f6
{[%clk 00:16:57]} {[%emt 00:00:12]} 32. Rh4 {[%clk 00:19:00]} {[%emt 00:00:24]}
Rxc3 {[%clk 00:16:11]} {[%emt 00:00:56]} 33. f4 {[%clk 00:19:05]} {[%emt
00:00:04]} exf4 {[%clk 00:15:13]} {[%emt 00:01:08]} 34. Rxf4 {[%clk 00:19:04]}
{[%emt 00:00:11]} a5 {[%clk 00:14:57]} {[%emt 00:00:26]} 35. Rf3 {[%clk
00:18:58]} {[%emt 00:00:17]} Rxf3 {[%clk 00:14:56]} {[%emt 00:00:12]} 36. Kxf3
{[%clk 00:19:05]} {[%emt 00:00:02]} a4 {[%clk 00:15:03]} {[%emt 00:00:03]} 0-1



[ePGN "0.1;DGT LiveChess/2.2.6"]

[Event "MČR družstev mladších žáků 2024"]
[Site "Harrachov, Czech Republic"]
[Date "2024.06.14"]
[Round "1.11"]
[White "Kusova Nikola"]
[Black "Kratochvil Jakub"]
[Result "1-0"]
[TimeControl "25+10"]
[WhiteFideId "23733705"]
[WhiteElo "1353"]
[BlackElo "1150"]

1. e4 {[%clk 00:25:18]} {[%emt 00:00:02]} e5 {[%clk 00:25:18]} {[%emt
00:00:02]} 2. Nc3 {[%clk 00:25:26]} {[%emt 00:00:02]} Nf6 {[%clk 00:25:20]}
{[%emt 00:00:08]} 3. Bc4 {[%clk 00:25:33]} {[%emt 00:00:02]} Bc5 {[%clk
00:25:25]} {[%emt 00:00:05]} 4. d3 {[%emt 00:00:04]} h6 {[%clk 00:25:32]}
{[%emt 00:00:02]} 5. f4 {[%clk 00:25:49]} {[%emt 00:00:02]} d6 {[%emt
00:01:07]} 6. Na4 {[%emt 00:01:09]} Bxg1 {[%clk 00:23:53]} {[%emt 00:00:07]} 7.
Rxg1 {[%emt 00:00:21]} O-O {[%emt 00:03:25]} 8. Qe2 {[%emt 00:04:02]} Nc6
{[%emt 00:03:11]} 9. Be3 {[%clk 00:17:45]} {[%emt 00:00:59]} Be6 10. Bxe6
{[%emt 00:02:27]} fxe6 {[%emt 00:01:52]} 11. g4 {[%emt 00:03:05]} exf4 {[%clk
00:15:45]} {[%emt 00:00:01]} 12. Bxf4 {[%clk 00:15:41]} {[%emt 00:00:29]} Nh7
{[%clk 00:15:20]} {[%emt 00:00:36]} 13. Be3 {[%clk 00:14:58]} {[%emt 00:00:52]}
Ng5 {[%clk 00:11:57]} {[%emt 00:03:32]} 14. O-O-O {[%clk 00:12:26]} {[%emt
00:02:42]} e5 {[%clk 00:11:11]} {[%emt 00:00:57]} 15. Rdf1 {[%clk 00:09:51]}
{[%emt 00:02:45]} Qe7 {[%clk 00:10:38]} {[%emt 00:00:42]} 16. h4 {[%clk
00:08:39]} {[%emt 00:01:21]} Rxf1+ {[%clk 00:09:48]} {[%emt 00:01:01]} 17. Rxf1
{[%clk 00:08:42]} {[%emt 00:00:07]} Nf7 {[%clk 00:09:35]} {[%emt 00:00:22]} 18.
g5 {[%clk 00:08:18]} {[%emt 00:00:36]} Rf8 {[%clk 00:09:13]} {[%emt 00:00:31]}
19. gxh6 {[%clk 00:07:17]} {[%emt 00:01:11]} Nxh6 {[%clk 00:08:46]} {[%emt
00:00:36]} 20. Rg1 {[%clk 00:05:23]} {[%emt 00:02:04]} Qxh4 {[%clk 00:06:42]}
{[%emt 00:02:14]} 21. Qg2 {[%clk 00:05:07]} {[%emt 00:00:20]} Rf7 {[%clk
00:06:28]} {[%emt 00:00:31]} 22. Qg6 {[%clk 00:04:36]} {[%emt 00:00:36]} b5
{[%clk 00:05:09]} {[%emt 00:01:34]} 23. Nc3 {[%clk 00:04:00]} {[%emt 00:00:45]}
b4 {[%clk 00:04:29]} {[%emt 00:00:51]} 24. Nd5 {[%clk 00:03:54]} {[%emt
00:00:17]} Nd4 {[%clk 00:02:47]} {[%emt 00:01:52]} 25. Qg2 {[%clk 00:00:30]}
{[%emt 00:03:34]} c6 {[%clk 00:02:48]} {[%emt 00:00:09]} 26. Nxb4 {[%clk
00:00:33]} {[%emt 00:00:07]} Ne6 {[%clk 00:02:39]} {[%emt 00:00:18]} 27. Nxc6
{[%clk 00:00:26]} {[%emt 00:00:18]} Kf8 {[%clk 00:02:07]} {[%emt 00:00:37]} 28.
Rh1 {[%clk 00:00:18]} {[%emt 00:00:22]} Qf6 {[%clk 00:02:05]} {[%emt 00:00:13]}
29. Bxh6 {[%clk 00:00:21]} {[%emt 00:00:08]} gxh6 {[%clk 00:02:13]} {[%emt
00:00:02]} 30. Rg1 {[%clk 00:00:25]} {[%emt 00:00:05]} Rg7 {[%clk 00:01:51]}
{[%emt 00:00:31]} 31. Rf1 {[%clk 00:00:23]} {[%emt 00:00:13]} Nf4 {[%clk
00:01:57]} {[%emt 00:00:04]} 32. Qf3 {[%clk 00:00:24]} {[%emt 00:00:09]} h5
{[%clk 00:01:31]} {[%emt 00:00:36]} 33. Nb4 {[%clk 00:00:32]} {[%emt 00:00:02]}
Rf7 {[%clk 00:01:33]} {[%emt 00:00:07]} 34. Qe3 {[%clk 00:00:17]} {[%emt
00:00:26]} h4 {[%clk 00:01:31]} {[%emt 00:00:12]} 35. Qd2 {[%clk 00:00:14]}
{[%emt 00:00:13]} h3 {[%clk 00:01:36]} {[%emt 00:00:05]} 36. Nd5 {[%clk
00:00:18]} {[%emt 00:00:06]} Qg6 {[%clk 00:01:35]} {[%emt 00:00:09]} 37. Nxf4
{[%clk 00:00:24]} {[%emt 00:00:06]} exf4 {[%clk 00:01:43]} {[%emt 00:00:02]} 38.
Qh2 {[%clk 00:00:26]} {[%emt 00:00:07]} Qg3 {[%clk 00:01:45]} {[%emt 00:00:08]}
39. Qh1 {[%clk 00:00:14]} {[%emt 00:00:23]} Qe3+ {[%clk 00:01:51]} {[%emt
00:00:03]} 40. Kb1 {[%clk 00:00:23]} {[%emt 00:00:02]} Qg3 {[%clk 00:01:27]}
{[%emt 00:00:33]} 41. Rf3 {[%clk 00:00:23]} {[%emt 00:00:09]} Qg2 {[%clk
00:01:29]} {[%emt 00:00:09]} 42. Rxh3 {[%clk 00:00:22]} {[%emt 00:00:11]} Qxh1+
{[%clk 00:01:36]} {[%emt 00:00:03]} 43. Rxh1 {[%clk 00:00:31]} {[%emt
00:00:01]} f3 {[%clk 00:01:43]} {[%emt 00:00:03]} 44. Rf1 {[%clk 00:00:39]}
{[%emt 00:00:01]} Rg7 {[%clk 00:01:36]} {[%emt 00:00:17]} 45. Rxf3+ {[%clk
00:00:47]} {[%emt 00:00:03]} Kg8 {[%clk 00:01:43]} {[%emt 00:00:03]} 46. Kc1
{[%clk 00:00:45]} {[%emt 00:00:12]} Rg5 {[%clk 00:01:43]} {[%emt 00:00:10]} 47.
Rf5 {[%clk 00:00:47]} {[%emt 00:00:08]} Rg1+ {[%clk 00:01:50]} {[%emt
00:00:03]} 48. Kd2 {[%clk 00:00:55]} {[%emt 00:00:01]} Rg2+ {[%clk 00:01:59]}
{[%emt 00:00:01]} 49. Kc3 {[%clk 00:01:04]} {[%emt 00:00:01]} Kh7 {[%clk
00:02:02]} {[%emt 00:00:05]} 50. Rf6 {[%clk 00:01:08]} {[%emt 00:00:08]} Rg5
{[%clk 00:01:57]} {[%emt 00:00:15]} 51. Rf5 {[%clk 00:01:00]} {[%emt 00:00:19]}
Rg6 {[%clk 00:02:04]} {[%emt 00:00:03]} 52. Kd4 {[%clk 00:01:07]} {[%emt
00:00:03]} Rg2 {[%clk 00:02:07]} {[%emt 00:00:07]} 53. Ra5 {[%clk 00:00:54]}
{[%emt 00:00:23]} Rg7 {[%clk 00:02:09]} {[%emt 00:00:07]} 54. c4 {[%clk
00:00:57]} {[%emt 00:00:07]} Kg6 {[%clk 00:02:04]} {[%emt 00:00:15]} 55. b4
{[%clk 00:00:59]} {[%emt 00:00:09]} Rc7 {[%clk 00:02:02]} {[%emt 00:00:11]} 56.
Ra6 {[%clk 00:01:03]} {[%emt 00:00:07]} Rd7 {[%clk 00:02:08]} {[%emt 00:00:04]}
57. Kd5 {[%clk 00:01:11]} {[%emt 00:00:02]} Rb7 {[%clk 00:02:10]} {[%emt
00:00:07]} 58. Rxd6+ {[%clk 00:01:19]} {[%emt 00:00:03]} Kh5 {[%clk 00:02:13]}
{[%emt 00:00:05]} 59. b5 {[%clk 00:01:27]} {[%emt 00:00:04]} Rf7 {[%clk
00:02:11]} {[%emt 00:00:10]} 60. c5 {[%clk 00:01:31]} {[%emt 00:00:07]} Rg7
{[%clk 00:02:13]} {[%emt 00:00:06]} 61. c6 {[%clk 00:01:36]} {[%emt 00:00:06]}
Rg5+ {[%clk 00:02:20]} {[%emt 00:00:03]} 62. e5 {[%clk 00:01:45]} {[%emt
00:00:02]} Rg2 {[%clk 00:02:23]} {[%emt 00:00:05]} 63. c7 {[%clk 00:01:52]}
{[%emt 00:00:04]} Rc2 {[%clk 00:02:26]} {[%emt 00:00:05]} 64. Rc6 {[%clk
00:01:59]} {[%emt 00:00:05]} Rxc6 {[%clk 00:02:29]} {[%emt 00:00:08]} 65. Kxc6
{[%clk 00:02:07]} {[%emt 00:00:01]} 1-0



[ePGN "0.1;DGT LiveChess/2.2.6"]